Cogmind - Beta 13 @@@ ROGUE MODE // 2024.04.02 @ 19:52:51 Player: OldWhovian Result: Self-destructed Performance ------------- Evolutions (1) 500 Regions Visited (2) 400 Robots Destroyed (40) 200 Value Destroyed (1163) 1163 Prototype IDs (2) 40 Alien Tech Used (0) 0 Bonus (38) 38 TOTAL SCORE: 2341 Bonus ------- High Alert Combat Kills 38 Cogmind --------- Core Integrity 237/400 Matter 73/300 Energy 160/160 System Corruption 0% Temperature Cool (0) Movement Treading (240) Ox1 Location -9/Materials Parts ------- > --- POWER (1) -------- Light Nuclear Core > --- PROPULSION (3) --- Light Treads > --- UTILITY (3) ------ Cooling System Medium Storage Unit > --- WEAPON (2) ------- Medium Laser Rocket Launcher > --- INVENTORY (10) --- Cooled Ion Engine Aluminum Leg Aluminum Leg Small Storage Unit Light Assault Rifle Rocket Launcher Rocket Launcher Rocket Launcher Peak State ------------ > --- POWER ------------ Light Nuclear Core > --- PROPULSION ------- Light Treads Light Treads Light Treads > --- UTILITY ---------- Improved Heat Sink Cooling System Medium Storage Unit > --- WEAPON ----------- Rocket Launcher Rocket Launcher > --- INVENTORY -------- Cooled Ion Engine Aluminum Leg Aluminum Leg Small Storage Unit Medium Laser Light Assault Rifle Rocket Launcher Rocket Launcher [Rating: 17] Favorites ----------- Power Light Nuclear Core Engine Light Ion Engine Power Core Light Nuclear Core Propulsion Light Treads Treads Light Treads Utility Cooling System Device Cooling System Storage Small Storage Unit Weapon Rocket Launcher Energy Gun Medium Laser Launcher Rocket Launcher Build | -11 -10 -9 ------- Run | Yrd Mat Mat Slots Evolved 2 | . . 2 Power . | . . . Propulsion 1 | . . 1 Utility 1 | . . 1 Weapon . | . . . Parts Attached 15 | 6 4 5 Power 3 | 1 1 1 Engine 2 | 1 1 . Core 1 | . . 1 Reactor . | . . . Propulsion 3 | 2 . 1 Treads 3 | 2 . 1 Leg . | . . . Wheel . | . . . Hover . | . . . Flight . | . . . Utility 4 | 1 1 2 Device 2 | . 1 1 Storage 2 | 1 . 1 Processor . | . . . Hackware . | . . . Protection . | . . . Artifact . | . . . Weapon 5 | 2 2 1 Energy Gun 3 | 2 . 1 Energy Cannon . | . . . Ballistic Gun . | . . . Ballistic Cannon . | . . . Launcher 2 | . 2 . Special Weapon . | . . . Impact Weapon . | . . . Slashing Weapon . | . . . Piercing Weapon . | . . . Special Melee Weapon . | . . . Unidentified Prototypes . | . . . Parts Lost 4 | . 1 3 Power 1 | . 1 . Propulsion 2 | . . 2 Utility 1 | . . 1 Weapon . | . . . Highest Loss Streak 2 | . 1 2 To Critical Strikes . | . . . Average Slot Usage (%) 88 | . 96 87 Engine 2 | . 11 . Core 9 | . . 11 Treads 23 | . 28 22 Device 19 | . 12 20 Storage 11 | . 14 11 Energy Gun 1 | . 2 1 Launcher 21 | . 25 20 Naked Turns . | . . . Heaviest Build 26 | 11 18 26 Greatest Support 60 | 40 40 60 Greatest Overweight (x) 1 | . . 1 Average Overweight (x) . | . . . Largest Inventory Capacity 10 | 8 8 10 Average Capacity 8 | 6 8 8 Most Carried 9 | 4 8 9 Average Carried 7 | 2 7 7 Final Capacity 10 | 8 8 10 Final Carried 8 | 4 8 8 Class Distribution -------------------- 100% | Mutant Dominant Class ---------------- Mutant | -10/Materials Mutant | -9/Materials Resources | -11 -10 -9 ----------- Run | Yrd Mat Mat Matter Collected 734 | 230 172 332 Remotely . | . . . Salvage Created 1034 | . 425 609 Parts 66 | . 26 40 Haulers Intercepted 3 | . 2 1 Recyclers Shooed 1 | . . 1 Parts Field Recycled . | . . . Retrieved Matter . | . . . Parts Self-Destructed . | . . . Prevented . | . . . Kills | -11 -10 -9 ------- Run | Yrd Mat Mat Combat Hostiles Destroyed 26 | . 10 16 Guns 1 | . . 1 AOE 25 | . 10 15 Classes Destroyed 10 | . 5 5 Worker 4 | . 1 3 Builder 1 | . . 1 Hauler 3 | . 2 1 Recycler 4 | . 2 2 Operator 1 | . 1 . Watcher 1 | . . 1 Swarmer 3 | . . 3 Grunt 17 | . 10 7 Duelist 1 | . . 1 Sentry 5 | . . 5 Best Kill Streak 11 | . 11 6 Combat Bots Only 6 | . 6 4 Max Kills in Single Turn 4 | . 3 4 Gunslinging . | . . . Exploded 3 | . 2 3 Melee . | . . . Uniques/NPCs Destroyed . | . . . Combat | -11 -10 -9 -------- Run | Yrd Mat Mat Hostile Shots Fired 57 | . 13 44 Missed 21 | . 4 17 Damage Taken 988 | . 480 508 Core 333 | . 170 163 Absorbed by Shields . | . . . Core Remaining (%) 66 | 100 32 . Volleys Fired 41 | . 12 29 Largest 2 | . 2 2 Hottest 66 | . 66 66 Shots Fired 75 | . 25 50 Gun 8 | . . 8 Cannon . | . . . Launcher 67 | . 25 42 Special . | . . . Kinetic . | . . . Thermal 8 | . . 8 Explosive 67 | . 25 42 Electromagnetic . | . . . Robot Hit Streak 5 | . 5 5 Robot Miss Streak 3 | . 1 3 Penetration Max . | . . . Secondary Targets . | . . . Shots Hit Robots 29 | . 12 17 Core Hits 72 | . 22 50 Critical Kills . | . . . Critical Parts Destroyed . | . . . Critical Strikes 2 | . . 2 Burn 2 | . . 2 Melee Attacks . | . . . Impact . | . . . Slashing . | . . . Piercing . | . . . Sneak Attacks . | . . . Combat Hostiles . | . . . Follow-up Attacks . | . . . Damage Inflicted 3011 | . 1303 1708 Guns 63 | . . 63 Cannons . | . . . Explosions 2948 | . 1303 1645 Melee . | . . . Ramming . | . . . Kinetic . | . . . Thermal 63 | . . 63 Explosive 2928 | . 1303 1625 Electromagnetic 20 | . . 20 Impact . | . . . Slashing . | . . . Piercing . | . . . Highest Corruption 5 | . 5 . Average Corruption 5 | . 5 . Corruption Purged . | . . . Corruption Blocked . | . . . Effects 2 | . 2 . Matter Fused 1 | . 1 . Misfires 1 | . 1 . Overload Shots . | . . . Overflow Damage 43 | . 39 4 Projectiles . | . . . Explosions 43 | . 39 4 Melee . | . . . Knockbacks . | . . . Impact . | . . . Kinetic . | . . . Secondary . | . . . Self-Inflicted Damage 114 | . . 114 Shots 4 | . . 4 Rammed . | . . . Targets Rammed . | . . . Kicked . | . . . Crushed . | . . . Highest Temperature . | . . . Average Temperature . | . . . Received Heat Transfer 165 | . 63 102 Siege Activations . | . . . Robots Corrupted . | . . . Combat Hostiles . | . . . Parts Fried . | . . . Impact Corruptions . | . . . Robots Melted . | . . . Combat Hostiles . | . . . Parts Melted 2 | . . 2 Heat Transferred 333 | . . 333 Parts Sabotaged . | . . . Parts Stolen . | . . . Parts Stripped . | . . . Power Chain Reactions . | . . . Alert | -11 -10 -9 ------- Run | Yrd Mat Mat Peak Influence 563 | . 474 563 Initial 197 | . . 197 Average 222 | . 245 240 Maximum Alert Level 2 | . 2 2 Low Security (%) 49 | 100 46 45 Level 1 35 | . 33 39 Level 2 14 | . 19 14 Level 3 . | . . . Level 4 . | . . . Level 5 . | . . . High Security . | . . . Max Security . | . . . Squads Dispatched 4 | . . 4 Investigation 2 | . . 2 Extermination . | . . . Reinforcement . | . . . Assault 2 | . . 2 Garrison . | . . . Intercept . | . . . Searches Triggered . | . . . Construction Impeded . | . . . Haulers Reinforced . | . . . Active Scanning Responses . | . . . Cargo Convoy Interrupts . | . . . Stealth | -11 -10 -9 --------- Run | Yrd Mat Mat Distress Signals 1 | . . 1 Communications Jammed . | . . . Distress Signals . | . . . Times Spotted 32 | . 12 20 Peak Tracking Total 6 | . 6 6 Tactical Retreats . | . . . Traps | -11 -10 -9 ------- Run | Yrd Mat Mat Traps Triggered . | . . . Indirectly . | . . . Trap Hack Attempts . | . . . Triggered . | . . . Disarmed . | . . . Reprogrammed . | . . . Reused . | . . . Traps Extracted . | . . . Installed . | . . . Triggered . | . . . Machines | -11 -10 -9 ---------- Run | Yrd Mat Mat Machines Disabled 16 | . 7 9 Max in Single Turn 4 | . 4 2 Machines Repaired . | . . . Machines Dismantled . | . . . Machines Sabotaged . | . . . Overloaded Fab Kills . | . . . Hacking | -11 -10 -9 --------- Run | Yrd Mat Mat Machines Accessed 7 | . 2 5 Terminals 6 | . 2 4 Fabricators . | . . . Repair Stations . | . . . Recycling Units 1 | . . 1 Scanalyzers . | . . . Garrison Access . | . . . Total Hacks 25 | . 8 17 Successful 10 | . 3 7 Failed 15 | . 5 10 Catastrophic 2 | . 1 1 Database Lockouts . | . . . Manual . | . . . Terminals 21 | . 8 13 Fabricators . | . . . Repair Stations . | . . . Recycling Units 4 | . . 4 Scanalyzers . | . . . Garrison Access . | . . . Terminal Hacks 8 | . 3 5 Robot Analysis 1 | . . 1 Prototype ID Bank 1 | . 1 . Emergency Access Points 1 | . 1 . Unreport Threat 1 | . . 1 Locate Traps 2 | . 1 1 Zone Layout 2 | . . 2 Fabricator Hacks . | . . . Repair Station Hacks . | . . . Recycling Unit Hacks 2 | . . 2 Process 1 | . . 1 Retrieve Matter 1 | . . 1 Scanalyzer . | . . . Garrison Access Hacks . | . . . Unauthorized Hacks . | . . . Terminals . | . . . Fabricators . | . . . Repair Stations . | . . . Recycling Units . | . . . Scanalyzers . | . . . Garrison Access . | . . . Data Cores Recovered . | . . . Used . | . . . Hacking Detections 7 | . 2 5 Full Trace Events 3 | . 1 2 Feedback Events . | . . . Feedback Blocked . | . . . Robot Schematics Acquired . | . . . Robots Built . | . . . Authchips . | . . . Time . | . . . Total Robot Build Rating . | . . . Part Schematics Acquired . | . . . Parts Built . | . . . Authchips . | . . . Time . | . . . Total Part Build Rating . | . . . Parts Repaired . | . . . Time . | . . . Parts Recycled . | . . . Recycled Matter 116 | . . 116 Retrieved Matter 116 | . . 116 Retrieved Components . | . . . Parts Scanalyzed . | . . . Part Schematics Acquired . | . . . Parts Damaged . | . . . Bothacking | -11 -10 -9 ------------ Run | Yrd Mat Mat Used RIF Installer . | . . . Robots Hacked . | . . . Non-combat . | . . . Combat . | . . . Robot Hacks Applied . | . . . Relay Couplers Released . | . . . Fabnet Peak Effective % . | . . . Robots Rewired . | . . . Allies Hacked . | . . . Hacks Repelled . | . . . Allies | -11 -10 -9 -------- Run | Yrd Mat Mat Total Allies . | . . . Largest Group . | . . . Highest-Rated Group . | . . . Highest-Rated Ally . | . . . Total Orders . | . . . Ally Attacks . | . . . Total Damage . | . . . Kills . | . . . Allies Corrupted . | . . . Allies Melted . | . . . Intel | -11 -10 -9 ------- Run | Yrd Mat Mat Robot Analysis Total 1 | . . 1 Derelict Logs Recovered . | . . . Drone Launches . | . . . Drone Recoveries . | . . . Exploration | -11 -10 -9 ------------- Run | Yrd Mat Mat Turns Passed 1660 | 129 274 1257 Spaces Moved 934 | 78 142 714 Core 10 | 10 . . Treads 924 | 68 142 714 Legs . | . . . Wheels . | . . . Hover . | . . . Flight . | . . . Fastest Speed 50 | 50 160 160 Average Speed 160 | 145 160 162 Slowest Speed 240 | 160 160 240 Overloaded Moves . | . . . Propulsion Burnouts . | . . . Robots Hopped . | . . . Cave-ins Triggered 1 | . 1 . Exploration Rate (%) 24 | 4 33 37 Regions Visited 2 Branch Regions . Pre-discovered Areas . | . . . Known Exits Taken . | . . . Unknown Exits Taken 2 | 1 1 . Scrap Searched . | . . . Spaces Dug 9 | . . 9 Terrain Destroyed 414 | . 92 322 Melee . | . . . Projectile . | . . . AOE 414 | . 92 322 Terrain Rammed . | . . . Walls Destroyed . | . . . Machines Disabled . | . . . Actions | -11 -10 -9 --------- Run | Yrd Mat Mat Total 1017 | 93 164 760 Wait 7 | . . 7 Move 932 | 77 141 714 Hop . | . . . Pick Up 20 | 10 6 4 Fast Attach . | . . . Attach 11 | 6 2 3 Detach . | . . . Swap 4 | . 2 2 Drop 2 | . 1 1 Fire 41 | . 12 29 Melee . | . . . Ram . | . . . Kick . | . . . Crush . | . . . Escape Stasis . | . . . Rewire . | . . . Trap . | . . . Miscellaneous . | . . . Route ------- -11/Scrapyard -10/Materials -9/Materials (discovered 1 exit: [*Min]) History --------- Turn | Location | Event 12 | -11/Scrapyard | Discovered new exit (range 15) 130 | -11/Scrapyard | Entered Materials 305 | -10/Materials | Build established: Mutant 368 | -10/Materials | Crushed by falling debris 368 | -10/Materials | Core integrity fell below 50% 372 | -10/Materials | Discovered new exit (range 16) 404 | -10/Materials | Entered another Materials area 404 | -9/Materials | Evolved 2 slots: Propulsion x1, Utility x1 1300 | -9/Materials | Discovered new exit (range 16) 1604 | -9/Materials | First assault squad dispatched 1661 | -9/Materials | Self-destructed Last Messages --------------- [Achievement: Oops] Imp. Heat Sink destroyed. Lgt. Treads destroyed. Processing Tank disabled. Y-45 Defender suffers critical hit (Burn). ALERT: Significant disruption in Zone 5U, multiple assault carriers dispatched. Lgt. Treads destroyed. Y-45 Defender suffers critical hit (Burn). Beam Rifle melted. Imp. Ion Engine melted. Y-45 Defender destroyed. Acquired 57 matter. Connecting with Terminal... ALERT: Suspicious activity at Terminal M007. Dispatching Investigation squad. C-30 ARC bursts open, deploying its payload. G-47 Trooper unfolds itself. L-31 Rogue unfolds itself. G-34 Mercenary unfolds itself. Map ----- +----------------------------------------------------+ | ?????????????#### ??????????? | | ???????########## # ###########? | | ???????# #? | | ???????# """ + #? | | ??????## "Y" """ #? | | ??????# """ ! #? | | ??????## """ #? | | ???????# # #? | | ???????# ! #? | | ???????########## # ###########? | | ????????????????### ##???????#### | | ????????########## ########## | | ?######## | | ?# # T | | ?# """ # ###+#### ### # | | ?# """ # # ######## | | ?# """ " # #??????# # | | ?# # # #??????# [# | | ?# ;% # #??????# " = | | ?########b############### "" = | | ????# ig ## # " # | | ????#/ gl ## """ # "" ## | | ????# """" ## """ # "" ### | | ????# """" ## """ # "" ### | | ????# """"" ## # " ## | | ????# @ ## """ # # # | | ????# ## """ ####### # # | | ????# """T""" ## """ #???## # | | ????############ ##### ## | | ?????????????????####+### ## # ## | | ?????????????? # | | ?????????????? | | ?????????????? ^ | | ?????????????? ######### # | | ????????????????????????# # | | ????????????????????????# # | | ????????????????????????# ## #### | | ????????????????????????# ?# #??? | | ????????????????????????# ?# #??? | | ????????????????????????###+#? ??? | | ?????????????????????????? ?? ??? | | ?????????????????????????? ?? ??? | | ?????????????????????????? ?####??? | | ????????????????????????? ???????? | | ????????????????????????? ???????? | | ????????????????????????? ????????? | | ???????????????????????????????????? | | ???????????????????????????????????? | | ???????????????????????????????????? | | ???????????????????????????????????? | +----------------------------------------------------+ Best States ------------- Heat Dissipation 64 Energy Generation 14 Energy Capacity 160 Matter Stores 270 Matter Capacity 300 Sight Range 16 Terrain Scan Density 10 Evasion (%) 40 Recoil Reduction 3 Item Schematics ----------------- None Robot Schematics ------------------ None Fabricated ------------ Nothing Alien Tech Used ----------------- None Achievements -------------- Maybe Next Time I'll Detach My Launcher Oops Unlikely Earthworm Challenges ------------ None Game ------ Seed ProjectionXenonMeganuke Manual? 0 Play Time 00:19:16 Cumulative 10.7 hours Start 2024.04.02 @ 19:35:04 End 2024.04.02 @ 19:52:51 Sessions 1 Manual Loads 0 Difficulty Rogue Special Mode None Game No. 11 Rogue 11 Adventurer 0 Explorer 0 Win Type - Total 0 Types 0/0/0/0/0/0/0/0/0 Lore% 15 Gallery% 12 Achievement% 14 Wizard Run 0 Options --------- Layout 0 ASCII 0 Keyboard 0 Movement Arrows Keybinds 0 Fullscreen 2 Font 36/Smallcaps Map View 38x25 Zoom Use 100% Tactical HUD 0 Map Filters NONE Filters NONE Steam 1 RUN: 2df06d14-bfaf-423a-98af-30213ebb3122